[Event "Live Chess"]
[Site "Chess.com"]
[Date "2024.06.01"]
[Round "-"]
[White "Dhaydon19"]
[Black "NeilDruggan73"]
[Result "1-0"]
[WhiteElo "2696"]
[BlackElo "1733"]
[TimeControl "300"]
[EndTime "12:30:12 PDT"]
[Termination "Dhaydon19 won by resignation"]

1. d4 {[%clk 0:04:58.3]} 1... Nf6 {[%clk 0:04:57.6]} 2. Nf3 {[%clk 0:04:57.9]}
2... g6 {[%clk 0:04:55.8]} 3. g3 {[%clk 0:04:57.5]} 3... Bg7 {[%clk 0:04:54.7]}
4. Bg2 {[%clk 0:04:56.2]} 4... O-O {[%clk 0:04:53.5]} 5. O-O {[%clk 0:04:55.8]}
5... d6 {[%clk 0:04:49.7]} 6. c3 {[%clk 0:04:55.4]} 6... Nc6 {[%clk 0:04:47.1]}
7. Nbd2 {[%clk 0:04:55]} 7... e5 {[%clk 0:04:46.1]} 8. dxe5 {[%clk 0:04:54.2]}
8... dxe5 {[%clk 0:04:41.8]} 9. Qc2 {[%clk 0:04:52.9]} 9... Bf5 {[%clk
0:04:38.5]} 10. e4 {[%clk 0:04:51.8]} 10... Be6 {[%clk 0:04:33.8]} 11. Ng5
{[%clk 0:04:50.1]} 11... Bd7 {[%clk 0:04:26.5]} 12. Rd1 {[%clk 0:04:48.6]} 12...
h6 {[%clk 0:04:24.7]} 13. Ngf3 {[%clk 0:04:47.9]} 13... Qe7 {[%clk 0:04:22]} 14.
Nb3 {[%clk 0:04:47.4]} 14... Rad8 {[%clk 0:04:19.5]} 15. Be3 {[%clk 0:04:46.6]}
15... a6 {[%clk 0:04:16.9]} 16. Bc5 {[%clk 0:04:44.7]} 16... Qe8 {[%clk
0:04:14.3]} 17. Bxf8 {[%clk 0:04:44.1]} 17... Qxf8 {[%clk 0:04:09.2]} 18. Rd2
{[%clk 0:04:41]} 18... a5 {[%clk 0:03:53.6]} 19. Rad1 {[%clk 0:04:37.6]} 19...
a4 {[%clk 0:03:51.8]} 20. Nc1 {[%clk 0:04:36.5]} 20... Qc5 {[%clk 0:03:49.6]}
21. Nd3 {[%clk 0:04:31.9]} 21... Qa5 {[%clk 0:03:41.4]} 22. Nb4 {[%clk
0:04:24.7]} 22... Nxb4 {[%clk 0:03:34.3]} 23. c4 {[%clk 0:04:22.9]} 23... Nxc2
{[%clk 0:03:31.5]} 1-0

[Event "Live Chess"]
[Site "Chess.com"]
[Date "2024.06.01"]
[Round "-"]
[White "StoreySniper"]
[Black "blunderabit"]
[Result "1-0"]
[WhiteElo "2532"]
[BlackElo "1820"]
[TimeControl "300"]
[EndTime "12:30:14 PDT"]
[Termination "StoreySniper won on time"]

1. c4 {[%clk 0:04:57.9]} 1... e5 {[%clk 0:04:54.4]} 2. g3 {[%clk 0:04:56.3]}
2... Be7 {[%clk 0:04:51.4]} 3. Bg2 {[%clk 0:04:55.1]} 3... f5 {[%clk 0:04:50.8]}
4. Nc3 {[%clk 0:04:54]} 4... Nf6 {[%clk 0:04:48.4]} 5. d4 {[%clk 0:04:51.7]}
5... d6 {[%clk 0:04:45.7]} 6. Nf3 {[%clk 0:04:49.2]} 6... e4 {[%clk 0:04:32.8]}
7. Ng5 {[%clk 0:04:44.7]} 7... h6 {[%clk 0:04:24.4]} 8. Nh3 {[%clk 0:04:43.5]}
8... g5 {[%clk 0:04:11.8]} 9. f3 {[%clk 0:04:40.2]} 9... exf3 {[%clk 0:03:56.8]}
10. exf3 {[%clk 0:04:40.1]} 10... O-O {[%clk 0:03:53.7]} 11. Nf2 {[%clk
0:04:34.8]} 11... Nc6 {[%clk 0:03:34.4]} 12. h4 {[%clk 0:04:32.4]} 12... Nh7
{[%clk 0:03:13.3]} 13. hxg5 {[%clk 0:04:26.4]} 13... hxg5 {[%clk 0:03:03.9]} 14.
f4 {[%clk 0:04:19.2]} 14... g4 {[%clk 0:02:43.6]} 15. Bd5+ {[%clk 0:04:16.3]}
15... Kg7 {[%clk 0:02:41.4]} 16. Be3 {[%clk 0:04:08.1]} 16... Nf6 {[%clk
0:02:29.5]} 17. Bxc6 {[%clk 0:04:01.6]} 17... bxc6 {[%clk 0:02:26.7]} 18. Qd3
{[%clk 0:04:00.5]} 18... Rb8 {[%clk 0:02:23.3]} 19. O-O-O {[%clk 0:03:58]} 19...
Bd7 {[%clk 0:02:11.7]} 20. d5 {[%clk 0:03:50.1]} 20... c5 {[%clk 0:02:07.8]} 21.
Kc2 {[%clk 0:03:39.7]} 21... Rb4 {[%clk 0:02:00.5]} 22. b3 {[%clk 0:03:37.8]}
22... a5 {[%clk 0:01:45.3]} 23. Bc1 {[%clk 0:03:36.6]} 23... a4 {[%clk 0:01:36]}
24. Bb2 {[%clk 0:03:35.4]} 24... axb3+ {[%clk 0:01:34.4]} 25. axb3 {[%clk
0:03:34.3]} 25... Qb8 {[%clk 0:01:25.5]} 26. Na2 {[%clk 0:03:29.1]} 26... Rb6
{[%clk 0:01:15.7]} 27. Nxg4 {[%clk 0:03:24.6]} 27... Ba4 {[%clk 0:01:08.5]} 28.
Nc1 {[%clk 0:03:08.9]} 28... Bd7 {[%clk 0:00:53.3]} 29. Rde1 {[%clk 0:02:43.7]}
29... Qd8 {[%clk 0:00:41.5]} 30. Rh6 {[%clk 0:02:28.6]} 30... Kg8 {[%clk
0:00:22.1]} 31. Rg6+ {[%clk 0:02:13.3]} 31... Kh7 {[%clk 0:00:19.3]} 32. Rxe7+
{[%clk 0:01:53.6]} 32... Kxg6 {[%clk 0:00:14.3]} 33. Rxd7 {[%clk 0:00:53.7]}
33... Nxd7 {[%clk 0:00:11]} 34. Ne2 {[%clk 0:00:49.8]} 34... Qe7 {[%clk
0:00:08.2]} 35. Ne3 {[%clk 0:00:45.4]} 35... Qe4 {[%clk 0:00:05.7]} 36. Qxe4
{[%clk 0:00:43.7]} 36... fxe4 {[%clk 0:00:05.2]} 37. g4 {[%clk 0:00:42.6]} 37...
Nf6 {[%clk 0:00:03.1]} 38. f5+ {[%clk 0:00:41.8]} 1-0

[Event "Live Chess"]
[Site "Chess.com"]
[Date "2024.06.01"]
[Round "-"]
[White "TigerTank70"]
[Black "Bob2pen"]
[Result "1-0"]
[WhiteElo "2191"]
[BlackElo "1911"]
[TimeControl "300"]
[EndTime "12:30:17 PDT"]
[Termination "TigerTank70 won by resignation"]

1. e4 {[%clk 0:04:57.9]} 1... e6 {[%clk 0:04:59]} 2. d4 {[%clk 0:04:56]} 2... d5
{[%clk 0:04:57.9]} 3. e5 {[%clk 0:04:55.7]} 3... c5 {[%clk 0:04:56.8]} 4. c3
{[%clk 0:04:55.5]} 4... Nc6 {[%clk 0:04:56.1]} 5. Nf3 {[%clk 0:04:54.8]} 5...
Qb6 {[%clk 0:04:53.2]} 6. a3 {[%clk 0:04:53]} 6... c4 {[%clk 0:04:51.6]} 7. Nbd2
{[%clk 0:04:50.7]} 7... f6 {[%clk 0:04:49.8]} 8. Be2 {[%clk 0:04:48]} 8... fxe5
{[%clk 0:04:48.1]} 9. Nxe5 {[%clk 0:04:43.5]} 9... Nxe5 {[%clk 0:04:46.9]} 10.
dxe5 {[%clk 0:04:43.2]} 10... Bc5 {[%clk 0:04:45.9]} 11. O-O {[%clk 0:04:39.2]}
11... Ne7 {[%clk 0:04:44.7]} 12. Bh5+ {[%clk 0:04:37.7]} 12... g6 {[%clk
0:04:42.8]} 13. Bg4 {[%clk 0:04:36.3]} 13... O-O {[%clk 0:04:41]} 14. Rb1 {[%clk
0:04:33.1]} 14... Rxf2 {[%clk 0:04:37]} 15. Rxf2 {[%clk 0:04:31.3]} 15... Bxf2+
{[%clk 0:04:35.7]} 16. Kh1 {[%clk 0:04:30.3]} 16... Bd7 {[%clk 0:04:33.6]} 17.
Nxc4 {[%clk 0:04:22.4]} 17... dxc4 {[%clk 0:04:20]} 18. Qxd7 {[%clk 0:04:20.4]}
18... Nf5 {[%clk 0:04:12.7]} 19. Bxf5 {[%clk 0:04:15.4]} 19... gxf5 {[%clk
0:04:11.3]} 20. Bh6 {[%clk 0:04:14.3]} 1-0

[Event "Live Chess"]
[Site "Chess.com"]
[Date "2024.06.01"]
[Round "-"]
[White "ossie57"]
[Black "bonantagulo"]
[Result "0-1"]
[WhiteElo "1652"]
[BlackElo "2105"]
[TimeControl "300"]
[EndTime "12:30:38 PDT"]
[Termination "bonantagulo won by resignation"]

1. c4 {[%clk 0:04:56.8]} 1... e5 {[%clk 0:04:53.3]} 2. Nc3 {[%clk 0:04:55.8]}
2... Nf6 {[%clk 0:04:50.4]} 3. d3 {[%clk 0:04:55.2]} 3... Nc6 {[%clk 0:04:49.6]}
4. g3 {[%clk 0:04:54.6]} 4... Bb4 {[%clk 0:04:42.8]} 5. Bg2 {[%clk 0:04:47.3]}
5... O-O {[%clk 0:04:38.2]} 6. e4 {[%clk 0:04:43.4]} 6... Nd4 {[%clk 0:04:35.5]}
7. Ne2 {[%clk 0:04:39.3]} 7... c6 {[%clk 0:04:26.8]} 8. a3 {[%clk 0:04:32.7]}
8... Bxc3+ {[%clk 0:04:07.4]} 9. bxc3 {[%clk 0:04:28.8]} 9... Nxe2 {[%clk
0:04:05]} 10. Qxe2 {[%clk 0:04:27.3]} 10... d5 {[%clk 0:04:04.9]} 11. cxd5
{[%clk 0:04:25.1]} 11... cxd5 {[%clk 0:04:04.8]} 12. exd5 {[%clk 0:04:18.9]}
12... Nxd5 {[%clk 0:04:04.7]} 13. Bd2 {[%clk 0:04:12.1]} 13... Re8 {[%clk
0:03:51.9]} 14. O-O {[%clk 0:04:09.7]} 14... f6 {[%clk 0:03:38.2]} 15. Rab1
{[%clk 0:04:07.3]} 15... Re7 {[%clk 0:03:29.6]} 16. Qe4 {[%clk 0:03:55.9]} 16...
Be6 {[%clk 0:03:21.4]} 17. c4 {[%clk 0:03:42]} 17... Nb6 {[%clk 0:03:11.7]} 18.
Bb4 {[%clk 0:03:39.2]} 18... Rd7 {[%clk 0:03:08.4]} 19. c5 {[%clk 0:03:16.9]}
19... Bd5 {[%clk 0:02:38.8]} 20. Qg4 {[%clk 0:03:03.3]} 20... Bxg2 {[%clk
0:02:35.3]} 21. Kxg2 {[%clk 0:02:48.6]} 21... Nd5 {[%clk 0:02:33.4]} 22. Qe6+
{[%clk 0:02:26.9]} 22... Kh8 {[%clk 0:02:31.1]} 23. h4 {[%clk 0:02:15.4]} 23...
Rc8 {[%clk 0:02:23.3]} 24. h5 {[%clk 0:02:13.4]} 24... h6 {[%clk 0:02:20.6]} 25.
Rfd1 {[%clk 0:01:47.5]} 25... Nxb4 {[%clk 0:02:10.9]} 26. axb4 {[%clk
0:01:36.3]} 26... Rc6 {[%clk 0:02:08.7]} 27. Qf5 {[%clk 0:01:17.6]} 27... Rd4
{[%clk 0:02:07.8]} 28. Rb3 {[%clk 0:01:01.6]} 28... Rc7 {[%clk 0:02:02.2]} 29.
Rc1 {[%clk 0:00:58.2]} 29... Qd5+ {[%clk 0:01:48.6]} 30. Qf3 {[%clk 0:00:42.9]}
30... Qxb3 {[%clk 0:01:48.5]} 0-1

[Event "Live Chess"]
[Site "Chess.com"]
[Date "2024.06.01"]
[Round "-"]
[White "stevochess11"]
[Black "Richardallis"]
[Result "1-0"]
[WhiteElo "1688"]
[BlackElo "2007"]
[TimeControl "300"]
[EndTime "12:31:01 PDT"]
[Termination "stevochess11 won - game abandoned"]

1. d4 {[%clk 0:04:56]} 1... c5 {[%clk 0:04:58.7]} 2. d5 {[%clk 0:04:48]} 2... d6
{[%clk 0:04:57.6]} 3. Nf3 {[%clk 0:04:46.4]} 3... e5 {[%clk 0:04:56.7]} 4. dxe6
{[%clk 0:04:37.3]} 4... fxe6 {[%clk 0:04:53.2]} 5. g3 {[%clk 0:04:28.5]} 5...
Nf6 {[%clk 0:04:51.5]} 6. Bg2 {[%clk 0:04:27.7]} 6... Nc6 {[%clk 0:04:50.6]} 7.
O-O {[%clk 0:04:25.6]} 7... d5 {[%clk 0:04:49.6]} 8. c3 {[%clk 0:04:23]} 8...
Bd6 {[%clk 0:04:47.9]} 9. Bg5 {[%clk 0:04:20.8]} 9... O-O {[%clk 0:04:46.7]} 10.
Nbd2 {[%clk 0:04:08.1]} 10... h6 {[%clk 0:04:44.9]} 11. Bxf6 {[%clk 0:04:02.6]}
11... Qxf6 {[%clk 0:04:42.9]} 12. e4 {[%clk 0:04:01.7]} 12... d4 {[%clk
0:04:40]} 13. cxd4 {[%clk 0:03:57.9]} 13... cxd4 {[%clk 0:04:35.7]} 14. Nb3
{[%clk 0:03:54.2]} 14... e5 {[%clk 0:04:34.1]} 15. Rc1 {[%clk 0:03:45.7]} 15...
Bg4 {[%clk 0:04:31.9]} 16. Nbd2 {[%clk 0:03:41.2]} 16... Bb4 {[%clk 0:04:30.6]}
17. Qb3+ {[%clk 0:03:38.7]} 17... Be6 {[%clk 0:04:19.8]} 18. Qa4 {[%clk
0:03:22.8]} 18... a6 {[%clk 0:04:17.8]} 19. Rxc6 {[%clk 0:03:18.3]} 19... Bxd2
{[%clk 0:04:14.4]} 20. Rxe6 {[%clk 0:02:38.2]} 20... Qxe6 {[%clk 0:04:12.1]} 21.
Nxd2 {[%clk 0:02:34.9]} 21... b5 {[%clk 0:04:10.8]} 22. Qb3 {[%clk 0:02:32.2]}
22... Qxb3 {[%clk 0:04:08.7]} 23. Nxb3 {[%clk 0:02:31.3]} 23... Rac8 {[%clk
0:04:05.7]} 24. Rc1 {[%clk 0:02:26.6]} 24... Rxc1+ {[%clk 0:04:03.6]} 25. Nxc1
{[%clk 0:02:25.6]} 25... Rc8 {[%clk 0:04:03]} 26. Nd3 {[%clk 0:02:22.9]} 26...
Rc2 {[%clk 0:04:00.7]} 27. Nxe5 {[%clk 0:02:20]} 27... Rxb2 {[%clk 0:03:57.4]}
28. Nd3 {[%clk 0:02:14.7]} 28... Rxa2 {[%clk 0:03:49.9]} 29. e5 {[%clk
0:02:13.4]} 29... Kf7 {[%clk 0:03:45.3]} 30. Bd5+ {[%clk 0:02:12.1]} 30... Ke7
{[%clk 0:03:44]} 31. Bxa2 {[%clk 0:02:11.1]} 31... a5 {[%clk 0:03:43]} 32. f4
{[%clk 0:02:08.1]} 32... b4 {[%clk 0:03:41.9]} 33. Nc5 {[%clk 0:02:03.7]} 33...
Kd8 {[%clk 0:03:35.2]} 34. Kf2 {[%clk 0:02:02.1]} 34... Kc7 {[%clk 0:03:34.2]}
35. Ke2 {[%clk 0:01:59]} 35... Kc6 {[%clk 0:03:33.1]} 36. Nb3 {[%clk 0:01:55.8]}
36... a4 {[%clk 0:03:29.1]} 37. Nxd4+ {[%clk 0:01:54.3]} 37... Kc5 {[%clk
0:03:28.6]} 38. Kd3 {[%clk 0:01:53]} 38... b3 {[%clk 0:03:26.8]} 39. Bxb3 {[%clk
0:01:51.5]} 39... axb3 {[%clk 0:03:26]} 40. Nxb3+ {[%clk 0:01:50.6]} 40... Kb4
{[%clk 0:03:25.6]} 41. Nd4 {[%clk 0:01:49.5]} 41... Kc5 {[%clk 0:03:24.8]} 42.
Ke4 {[%clk 0:01:48.3]} 42... Kb6 {[%clk 0:03:23.2]} 43. Kd5 {[%clk 0:01:47.2]}
43... Kc7 {[%clk 0:03:22.3]} 44. Ke6 {[%clk 0:01:45.9]} 44... Kd8 {[%clk
0:03:21.3]} 45. Kf7 {[%clk 0:01:44.8]} 45... Kd7 {[%clk 0:03:20.5]} 46. e6+
{[%clk 0:01:44.2]} 46... Kd6 {[%clk 0:03:19.3]} 47. e7 {[%clk 0:01:44.1]} 47...
Kd5 {[%clk 0:03:16.3]} 48. e8=Q {[%clk 0:01:44]} 48... Kxd4 {[%clk 0:03:14.8]}
49. Qe5+ {[%clk 0:01:42.1]} 49... Kd3 {[%clk 0:03:13.5]} 50. Ke6 {[%clk
0:01:41]} 1-0

[Event "Live Chess"]
[Site "Chess.com"]
[Date "2024.06.01"]
[Round "-"]
[White "Crowded_House"]
[Black "ACM42"]
[Result "0-1"]
[WhiteElo "1736"]
[BlackElo "2221"]
[TimeControl "300"]
[EndTime "12:31:11 PDT"]
[Termination "ACM42 won by checkmate"]

1. d4 {[%clk 0:04:58.8]} 1... Nf6 {[%clk 0:04:57.5]} 2. Bg5 {[%clk 0:04:58.1]}
2... g6 {[%clk 0:04:57]} 3. c3 {[%clk 0:04:56.2]} 3... Bg7 {[%clk 0:04:55.6]} 4.
e3 {[%clk 0:04:55.6]} 4... O-O {[%clk 0:04:54.6]} 5. Bd3 {[%clk 0:04:54.3]} 5...
b6 {[%clk 0:04:53.7]} 6. Nf3 {[%clk 0:04:52.5]} 6... Bb7 {[%clk 0:04:52.5]} 7.
Nbd2 {[%clk 0:04:52.1]} 7... d6 {[%clk 0:04:51.4]} 8. O-O {[%clk 0:04:49.1]}
8... Nbd7 {[%clk 0:04:50.2]} 9. Re1 {[%clk 0:04:47.9]} 9... e5 {[%clk
0:04:48.6]} 10. dxe5 {[%clk 0:04:46.4]} 10... Nxe5 {[%clk 0:04:45.7]} 11. Nxe5
{[%clk 0:04:45]} 11... dxe5 {[%clk 0:04:44.3]} 12. Bc2 {[%clk 0:04:40.7]} 12...
h6 {[%clk 0:04:42.5]} 13. Bh4 {[%clk 0:04:38.8]} 13... Qd7 {[%clk 0:04:34.1]}
14. Nb3 {[%clk 0:04:31]} 14... Qc6 {[%clk 0:04:25]} 15. f3 {[%clk 0:04:21.2]}
15... a5 {[%clk 0:04:22.4]} 16. e4 {[%clk 0:04:12]} 16... Rad8 {[%clk
0:04:07.3]} 17. Qe2 {[%clk 0:04:07.8]} 17... Rd6 {[%clk 0:03:54.3]} 18. Rad1
{[%clk 0:04:04.4]} 18... Rfd8 {[%clk 0:03:53]} 19. Rxd6 {[%clk 0:04:02.4]} 19...
Rxd6 {[%clk 0:03:51.5]} 20. Rd1 {[%clk 0:04:01.5]} 20... a4 {[%clk 0:03:49.4]}
21. Rxd6 {[%clk 0:03:53.1]} 21... Qxd6 {[%clk 0:03:47.4]} 22. Nc1 {[%clk
0:03:47.4]} 22... a3 {[%clk 0:03:42.2]} 23. b3 {[%clk 0:03:41]} 23... Qc5+
{[%clk 0:03:33.1]} 24. Bf2 {[%clk 0:03:28.2]} 24... Qxc3 {[%clk 0:03:31.8]} 25.
Qd3 {[%clk 0:03:18]} 25... Qb2 {[%clk 0:03:20.1]} 26. Qd1 {[%clk 0:03:07.2]}
26... Ba6 {[%clk 0:03:09]} 27. h3 {[%clk 0:02:56.6]} 27... Bf8 {[%clk
0:03:06.9]} 28. Kh2 {[%clk 0:02:53.3]} 28... Nd7 {[%clk 0:02:46.7]} 29. Be1
{[%clk 0:02:40.8]} 29... Qd4 {[%clk 0:02:27.7]} 30. Qxd4 {[%clk 0:02:37.6]}
30... exd4 {[%clk 0:02:26.4]} 31. Bd3 {[%clk 0:02:33.3]} 31... Bxd3 {[%clk
0:02:10.3]} 32. Nxd3 {[%clk 0:02:32.2]} 32... c5 {[%clk 0:02:07.6]} 33. Bf2
{[%clk 0:02:25.2]} 33... b5 {[%clk 0:02:02.7]} 34. Kg3 {[%clk 0:02:18.6]} 34...
Bd6+ {[%clk 0:01:58.9]} 35. f4 {[%clk 0:02:15.6]} 35... c4 {[%clk 0:01:57]} 36.
bxc4 {[%clk 0:02:13.4]} 36... bxc4 {[%clk 0:01:55.9]} 37. Ne5 {[%clk 0:02:02]}
37... Nxe5 {[%clk 0:01:46.6]} 38. fxe5 {[%clk 0:01:59.9]} 38... Bxe5+ {[%clk
0:01:45.3]} 39. Kf3 {[%clk 0:01:59]} 39... d3 {[%clk 0:01:40.6]} 40. Bc5 {[%clk
0:01:47.3]} 40... Bb2 {[%clk 0:01:26]} 41. Ke3 {[%clk 0:01:40.5]} 41... Bc1+
{[%clk 0:01:25]} 42. Kf2 {[%clk 0:01:37.1]} 42... c3 {[%clk 0:01:21.8]} 43. Ke1
{[%clk 0:01:32.1]} 43... c2 {[%clk 0:01:18.9]} 44. Bb4 {[%clk 0:01:27.3]} 44...
Kg7 {[%clk 0:01:17.3]} 45. g3 {[%clk 0:01:20.8]} 45... Kf6 {[%clk 0:01:15.4]}
46. g4 {[%clk 0:01:16.6]} 46... Ke5 {[%clk 0:01:14]} 47. Bc3+ {[%clk 0:01:14.3]}
47... Kxe4 {[%clk 0:01:12.6]} 48. h4 {[%clk 0:01:08.3]} 48... Ke3 {[%clk
0:01:08.8]} 49. Kf1 {[%clk 0:00:56.3]} 49... d2 {[%clk 0:01:06.9]} 50. Bxd2+
{[%clk 0:00:55.9]} 50... Bxd2 {[%clk 0:01:06]} 51. Kg2 {[%clk 0:00:55.8]} 51...
c1=Q {[%clk 0:01:04.6]} 52. Kg3 {[%clk 0:00:55.7]} 52... Qg1+ {[%clk 0:01:03]}
53. Kh3 {[%clk 0:00:54.8]} 53... Kf3 {[%clk 0:01:01.9]} 54. g5 {[%clk
0:00:54.7]} 54... Qh1# {[%clk 0:01:01.2]} 0-1

[Event "Live Chess"]
[Site "Chess.com"]
[Date "2024.06.01"]
[Round "-"]
[White "nffc11"]
[Black "Bradfield133"]
[Result "0-1"]
[WhiteElo "1974"]
[BlackElo "1944"]
[TimeControl "300"]
[EndTime "12:31:22 PDT"]
[Termination "Bradfield133 won by resignation"]

1. d4 {[%clk 0:04:57.3]} 1... d6 {[%clk 0:04:57.9]} 2. Nf3 {[%clk 0:04:54.3]}
2... f5 {[%clk 0:04:56.1]} 3. b3 {[%clk 0:04:45.7]} 3... Nf6 {[%clk 0:04:53.4]}
4. Bb2 {[%clk 0:04:45]} 4... c6 {[%clk 0:04:52.8]} 5. g3 {[%clk 0:04:43.9]} 5...
Qc7 {[%clk 0:04:51.8]} 6. Bg2 {[%clk 0:04:43.2]} 6... Nbd7 {[%clk 0:04:43.2]} 7.
O-O {[%clk 0:04:28.9]} 7... e5 {[%clk 0:04:39.1]} 8. c4 {[%clk 0:04:22.9]} 8...
Be7 {[%clk 0:04:36.1]} 9. dxe5 {[%clk 0:04:11.8]} 9... dxe5 {[%clk 0:04:33.9]}
10. Nc3 {[%clk 0:04:05.6]} 10... O-O {[%clk 0:04:31]} 11. e4 {[%clk 0:04:02.4]}
11... fxe4 {[%clk 0:04:21.8]} 12. Ng5 {[%clk 0:03:57.8]} 12... Nc5 {[%clk
0:04:19.8]} 13. Ncxe4 {[%clk 0:03:44.4]} 13... Nfxe4 {[%clk 0:04:10.9]} 14. Nxe4
{[%clk 0:03:42]} 14... Bf5 {[%clk 0:03:41.2]} 15. Qe2 {[%clk 0:03:22.6]} 15...
Ne6 {[%clk 0:03:24.6]} 16. Rad1 {[%clk 0:03:06.9]} 16... Rad8 {[%clk 0:03:17.7]}
17. Rxd8 {[%clk 0:02:59.2]} 17... Rxd8 {[%clk 0:03:10]} 18. Rd1 {[%clk
0:02:52.6]} 18... Nd4 {[%clk 0:03:01.8]} 19. Qe3 {[%clk 0:02:30.1]} 19... Bg4
{[%clk 0:02:45.3]} 20. Rd2 {[%clk 0:01:59.4]} 20... Bb4 {[%clk 0:02:34.7]} 21.
Rxd4 {[%clk 0:01:36.1]} 21... exd4 {[%clk 0:02:28.4]} 22. Bxd4 {[%clk
0:01:33.4]} 22... b6 {[%clk 0:01:57.9]} 23. h3 {[%clk 0:01:26.7]} 23... Bf5
{[%clk 0:01:45.1]} 24. Ng5 {[%clk 0:01:09.5]} 24... Qd6 {[%clk 0:01:17.4]} 25.
Be5 {[%clk 0:00:58.2]} 25... Qg6 {[%clk 0:00:49.5]} 26. Bxc6 {[%clk 0:00:49.1]}
26... Qxc6 {[%clk 0:00:43.2]} 27. Bxg7 {[%clk 0:00:36.7]} 27... Kxg7 {[%clk
0:00:36]} 28. Qe7+ {[%clk 0:00:30]} 28... Bxe7 {[%clk 0:00:32.4]} 0-1

[Event "Live Chess"]
[Site "Chess.com"]
[Date "2024.06.01"]
[Round "-"]
[White "LanceMaster23"]
[Black "Brooms1989"]
[Result "1-0"]
[WhiteElo "1787"]
[BlackElo "1088"]
[TimeControl "300"]
[EndTime "12:31:24 PDT"]
[Termination "LanceMaster23 won by resignation"]

1. Nf3 {[%clk 0:04:53.7]} 1... Nf6 {[%clk 0:04:58.3]} 2. d4 {[%clk 0:04:51.6]}
2... g6 {[%clk 0:04:56.2]} 3. Bf4 {[%clk 0:04:51]} 3... Bg7 {[%clk 0:04:48.6]}
4. e3 {[%clk 0:04:50.1]} 4... Nd5 {[%clk 0:04:45.3]} 5. Bg3 {[%clk 0:04:48.8]}
5... c5 {[%clk 0:04:42.4]} 6. c3 {[%clk 0:04:47.6]} 6... cxd4 {[%clk 0:04:35.2]}
7. exd4 {[%clk 0:04:47.5]} 7... O-O {[%clk 0:04:33]} 8. Bd3 {[%clk 0:04:45]}
8... Nc6 {[%clk 0:04:30.7]} 9. O-O {[%clk 0:04:43.1]} 9... d6 {[%clk 0:04:25.9]}
10. Re1 {[%clk 0:04:41.4]} 10... Bg4 {[%clk 0:04:21.9]} 11. Nbd2 {[%clk
0:04:39]} 11... e5 {[%clk 0:04:11.6]} 12. Qb3 {[%clk 0:04:22.1]} 12... Nb6
{[%clk 0:04:04]} 13. dxe5 {[%clk 0:03:32.7]} 13... Be6 {[%clk 0:03:50.2]} 14.
Qc2 {[%clk 0:03:28.3]} 14... dxe5 {[%clk 0:03:32.9]} 15. Nxe5 {[%clk 0:03:17.3]}
15... Nxe5 {[%clk 0:03:20.1]} 16. Bxe5 {[%clk 0:03:17.2]} 16... Nd5 {[%clk
0:02:54.6]} 17. Rad1 {[%clk 0:02:47.5]} 17... Rc8 {[%clk 0:02:45.2]} 18. Bxg7
{[%clk 0:02:26.6]} 18... Kxg7 {[%clk 0:02:40.7]} 19. Qb1 {[%clk 0:02:21.9]}
19... Nf4 {[%clk 0:02:22.9]} 20. Be4 {[%clk 0:02:10]} 20... Qg5 {[%clk
0:02:14.5]} 21. g3 {[%clk 0:01:44.6]} 21... f5 {[%clk 0:01:47.7]} 22. Nf3 {[%clk
0:01:09.6]} 22... Qf6 {[%clk 0:01:09]} 23. Bxb7 {[%clk 0:01:01.9]} 23... Rcd8
{[%clk 0:00:54.1]} 24. gxf4 {[%clk 0:00:56.7]} 1-0

[Event "Live Chess"]
[Site "Chess.com"]
[Date "2024.06.01"]
[Round "-"]
[White "nitrofish07"]
[Black "CarmelJane"]
[Result "1/2-1/2"]
[WhiteElo "2114"]
[BlackElo "2090"]
[TimeControl "300"]
[EndTime "12:31:33 PDT"]
[Termination "Game drawn by agreement"]

1. d4 {[%clk 0:04:56.4]} 1... Nf6 {[%clk 0:04:57]} 2. c4 {[%clk 0:04:55.7]} 2...
e6 {[%clk 0:04:56]} 3. g3 {[%clk 0:04:55]} 3... c5 {[%clk 0:04:48]} 4. Nf3
{[%clk 0:04:53.8]} 4... cxd4 {[%clk 0:04:46.9]} 5. Nxd4 {[%clk 0:04:53.7]} 5...
Nc6 {[%clk 0:04:46]} 6. Nc3 {[%clk 0:04:52.8]} 6... Bc5 {[%clk 0:04:30.2]} 7. e3
{[%clk 0:04:41.5]} 7... O-O {[%clk 0:04:28.1]} 8. Bg2 {[%clk 0:04:40.1]} 8...
Nxd4 {[%clk 0:04:16.2]} 9. exd4 {[%clk 0:04:39.1]} 9... Bb4 {[%clk 0:04:16]} 10.
O-O {[%clk 0:04:38]} 10... Rb8 {[%clk 0:04:09.6]} 11. a3 {[%clk 0:04:35.4]}
11... Bxc3 {[%clk 0:04:08.7]} 12. bxc3 {[%clk 0:04:35.3]} 12... b6 {[%clk
0:04:06.8]} 13. Bf4 {[%clk 0:04:32.6]} 13... d6 {[%clk 0:04:05.3]} 14. c5 {[%clk
0:04:30.5]} 14... bxc5 {[%clk 0:03:59.5]} 15. dxc5 {[%clk 0:04:28.8]} 15... e5
{[%clk 0:03:57.4]} 16. Be3 {[%clk 0:04:15.2]} 16... d5 {[%clk 0:03:45.8]} 17.
Bg5 {[%clk 0:04:05.6]} 17... Be6 {[%clk 0:03:16]} 18. Rb1 {[%clk 0:03:58.5]}
18... Qa5 {[%clk 0:03:10.2]} 19. Bxf6 {[%clk 0:03:41]} 19... gxf6 {[%clk
0:03:10.1]} 20. Rxb8 {[%clk 0:03:38.1]} 20... Rxb8 {[%clk 0:03:07.9]} 21. Bxd5
{[%clk 0:03:38]} 21... Rd8 {[%clk 0:02:51]} 22. c4 {[%clk 0:03:35.9]} 22... Qxc5
{[%clk 0:02:49.9]} 23. Qb3 {[%clk 0:03:30.7]} 23... Bxd5 {[%clk 0:02:48]} 24.
cxd5 {[%clk 0:03:28.6]} 24... Qxd5 {[%clk 0:02:46.4]} 25. Qe3 {[%clk 0:02:48.5]}
25... Qd4 {[%clk 0:02:41.5]} 26. Qh6 {[%clk 0:02:38.4]} 26... e4 {[%clk
0:02:40.4]} 27. Re1 {[%clk 0:02:27.4]} 27... Rc8 {[%clk 0:02:12.6]} 28. Qe3
{[%clk 0:02:14.7]} 28... Qxe3 {[%clk 0:02:03.5]} 29. Rxe3 {[%clk 0:02:14.6]}
29... f5 {[%clk 0:02:00.8]} 30. Rb3 {[%clk 0:02:11.5]} 30... Rc5 {[%clk
0:01:50.9]} 31. Kg2 {[%clk 0:02:06.6]} 31... a5 {[%clk 0:01:48.7]} 1/2-1/2